fUSD/lending_fUSD_20260508
["ID","MTS","AMOUNT","RATE_DAILY","PERIOD"]
[421859966,1778239832000,-500.0,0.00014624,2]
[421859987,1778239832000,-500.0,0.00014624,2]
[421859967,1778239832000,-500.0,0.00014624,2]
[421859965,1778239832000,-500.0,0.00014624,2]
[421859972,1778239832000,-500.0,0.00014624,2]
[421859964,1778239832000,-500.0,0.00014624,2]
[421859982,1778239832000,-500.0,0.00014624,2]
[421859976,1778239832000,-500.0,0.00014624,2]
[421859977,1778239832000,-500.0,0.00014624,2]
[421859970,1778239832000,-500.0,0.00014624,2]
[421859975,1778239832000,-500.0,0.00014624,2]
[421859963,1778239832000,-264.46,0.000145,2]
[421859978,1778239832000,-500.0,0.00014624,2]
[421859980,1778239832000,-500.0,0.00014624,2]
[421859979,1778239832000,-500.0,0.00014624,2]
[421859983,1778239832000,-500.0,0.00014624,2]
[421859984,1778239832000,-500.0,0.00014624,2]
[421859988,1778239832000,-500.0,0.00014624,2]
[421859986,1778239832000,-500.0,0.00014624,2]
[421859973,1778239832000,-500.0,0.00014624,2]
[421859969,1778239832000,-500.0,0.00014624,2]
[421859955,1778239832000,-853.39,0.00013812,2]
[421859961,1778239832000,-500.0,0.00014428,2]
[421859937,1778239832000,-158.26,0.00012822,2]
[421859938,1778239832000,-500.0,0.00013388,2]
[421859939,1778239832000,-772.29650152,0.00013487,2]
[421859946,1778239832000,-150.0,0.00013488,2]
[421859941,1778239832000,-150.0,0.00013488,2]
[421859942,1778239832000,-73.77329222,0.00013488,2]
[421859944,1778239832000,-150.0,0.00013488,2]
[421859940,1778239832000,-427.70349848,0.00013487,2]
[421859943,1778239832000,-76.22670778,0.00013488,2]
[421859945,1778239832000,-150.0,0.00013488,2]
[421859947,1778239832000,-150.0,0.00013488,2]
[421859949,1778239832000,-640.7217392,0.00013665,2]
[421859952,1778239832000,-240.0,0.0001374,2]
[421859948,1778239832000,-150.0,0.00013488,2]
[421859953,1778239832000,-46.77431473,0.00013741,2]
[421859950,1778239832000,-139.9482608,0.00013665,2]
[421859951,1778239832000,-300.0,0.0001374,2]
[421859954,1778239832000,-1953.22568527,0.00013741,2]
[421859956,1778239832000,-17572.82,0.0001425,2]
[421859957,1778239832000,-150.0,0.00014337,2]
[421859960,1778239832000,-158.26,0.00014425,2]
[421859958,1778239832000,-120624.33,0.00014338,2]
[421859962,1778239832000,-150.00000001,0.000145,21]
[421859959,1778239832000,-200.0,0.00014379,2]
[421859985,1778239832000,-500.0,0.00014624,2]
[421859968,1778239832000,-500.0,0.00014624,2]
[421859989,1778239832000,-768.32405169,0.00014625,2]
[421860011,1778239832000,-501.01972691,0.00014626,2]
[421860023,1778239832000,-500.0,0.00014626,2]
[421860017,1778239832000,-500.0,0.00014626,2]
[421860019,1778239832000,-500.0,0.00014626,2]
[421860020,1778239832000,-500.0,0.00014626,2]
[421860018,1778239832000,-500.0,0.00014626,2]
[421860031,1778239832000,-500.0,0.00014626,2]
[421860033,1778239832000,-635.77395225,0.00014626,2]
[421860035,1778239832000,-500.0,0.00014626,2]
[421860034,1778239832000,-156.86292928,0.00014626,2]
[421860026,1778239832000,-500.0,0.00014626,2]
[421860024,1778239832000,-500.0,0.00014626,2]
[421860025,1778239832000,-500.0,0.00014626,2]
[421860030,1778239832000,-500.0,0.00014626,2]
[421860028,1778239832000,-519.29483891,0.00014626,2]
[421860027,1778239832000,-500.0,0.00014626,2]
[421860029,1778239832000,-500.0,0.00014626,2]
[421860038,1778239832000,-482.13700008,0.00014673,2]
[421860037,1778239832000,-183.70581575,0.00014673,2]
[421860036,1778239832000,-768.32405168,0.00014656,2]
[421860040,1778239832000,-768.32405168,0.00014717,2]
[421860039,1778239832000,-768.32405168,0.00014686,2]
[421859995,1778239832000,-500.0,0.00014626,2]
[421860016,1778239832000,-500.0,0.00014626,2]
[421860015,1778239832000,-500.0,0.00014626,2]
[421860032,1778239832000,-551.96948306,0.00014626,2]
[421860022,1778239832000,-500.0,0.00014626,2]
[421859992,1778239832000,-500.0,0.00014626,2]
[421859991,1778239832000,-500.0,0.00014626,2]
[421860021,1778239832000,-544.95889557,0.00014626,2]
[421859990,1778239832000,-500.0,0.00014626,2]
[421859993,1778239832000,-500.0,0.00014626,2]
[421859997,1778239832000,-500.0,0.00014626,2]
[421860009,1778239832000,-500.0,0.00014626,2]
[421859996,1778239832000,-500.0,0.00014626,2]
[421860008,1778239832000,-500.0,0.00014626,2]
[421860007,1778239832000,-500.0,0.00014626,2]
[421859999,1778239832000,-500.0,0.00014626,2]
[421860001,1778239832000,-500.0,0.00014626,2]
[421859994,1778239832000,-500.0,0.00014626,2]
[421860003,1778239832000,-500.0,0.00014626,2]
[421860013,1778239832000,-500.0,0.00014626,2]
[421859998,1778239832000,-150.0,0.00014626,2]
[421860012,1778239832000,-500.0,0.00014626,2]
[421860010,1778239832000,-500.0,0.00014626,2]
[421860000,1778239832000,-150.0,0.00014626,2]
[421860014,1778239832000,-500.0,0.00014626,2]
[421860005,1778239832000,-500.0,0.00014626,2]
[421860006,1778239832000,-500.0,0.00014626,2]
[421860002,1778239832000,-150.0,0.00014626,2]
[421860004,1778239832000,-216.62043899,0.00014626,2]
[421860062,1778239833000,-768.32405168,0.000149,2]
[421860058,1778239833000,-2949.8117,0.000149,2]
[421860052,1778239833000,-768.32405168,0.00014839,2]
[421860055,1778239833000,-200.0,0.0001489,2]
[421860053,1778239833000,-768.32405168,0.00014869,2]
[421860061,1778239833000,-197.7362732,0.000149,2]
[421860060,1778239833000,-183.13119039,0.000149,2]
[421860059,1778239833000,-191.9060498,0.000149,2]
[421860057,1778239833000,-5152.90331007,0.000149,2]
[421860041,1778239833000,-210.08818589,0.00014725,2]
[421860046,1778239833000,-150.0,0.00014725,2]
[421860042,1778239833000,-150.0,0.00014725,2]
[421860043,1778239833000,-150.0,0.00014725,2]
[421860044,1778239833000,-150.0,0.00014725,2]
[421860049,1778239833000,-768.32405168,0.00014778,2]
[421860048,1778239833000,-768.32405168,0.00014747,2]
[421860047,1778239833000,-296.6104039,0.00014725,2]
[421860054,1778239833000,-500.0,0.00014873,2]
[421860051,1778239833000,-1151.0,0.00014835,2]
[421860050,1778239833000,-768.32405168,0.00014808,2]
[421860045,1778239833000,-189.22134171,0.00014725,2]
[421860056,1778239833000,-165.20343421,0.00014899,2]
[421860063,1778239833000,-5152.90331007,0.000149,2]
[421860085,1778239833000,-443.39958113,0.00014998,2]
[421860084,1778239833000,-23960.78479003,0.00014998,2]
[421860083,1778239833000,-305.5392619,0.00014998,2]
[421860081,1778239833000,-39873.66418781,0.00014998,2]
[421860086,1778239833000,-1108.61757386,0.00014998,2]
[421860066,1778239833000,-187.7733324,0.000149,2]
[421860064,1778239833000,-608.26262482,0.000149,2]
[421860078,1778239833000,-439.53953015,0.0001499,2]
[421860082,1778239833000,-15245.03956599,0.00014998,2]
[421860080,1778239833000,-21365.4891874,0.00014998,2]
[421860079,1778239833000,-439.53953015,0.0001499,2]
[421860069,1778239833000,-500.0,0.00014973,2]
[421860071,1778239833000,-398.38121662,0.00014973,2]
[421860075,1778239833000,-150.0,0.00014986,2]
[421860076,1778239833000,-1065.819,0.0001499,2]
[421860077,1778239833000,-439.53953015,0.0001499,2]
[421860065,1778239833000,-337.3061565,0.000149,2]
[421860068,1778239833000,-2906.94762815,0.000149,2]
[421860073,1778239833000,-244.52,0.00014985,2]
[421860122,1778239838000,-500.0,0.00014999,2]
[421860121,1778239838000,-500.0,0.00014999,2]
[421860125,1778239838000,-155.0,0.00014999,2]
[421860124,1778239838000,-527.40008406,0.00014999,2]
[421860133,1778239838000,-500.0,0.00014999,2]
[421860127,1778239838000,-500.0,0.00014999,2]
[421860129,1778239838000,-500.0,0.00014999,2]
[421860120,1778239838000,-500.0,0.00014999,2]
[421860126,1778239838000,-231.72561152,0.00014999,2]
[421860117,1778239838000,-500.0,0.00014999,2]
[421860110,1778239838000,-500.0,0.00014624,2]
[421860123,1778239838000,-500.0,0.00014999,2]
[421860119,1778239838000,-500.0,0.00014999,2]
[421860118,1778239838000,-500.0,0.00014999,2]
[421860115,1778239838000,-500.0,0.00014999,2]
[421860114,1778239838000,-59748.757576,0.00014998,2]
[421860113,1778239838000,-12567.80766858,0.00014998,2]
[421860112,1778239838000,-286.75704595,0.000149,2]
[421860111,1778239838000,-500.0,0.00014624,2]
[421860128,1778239838000,-500.0,0.00014999,2]
[421860109,1778239838000,-456.21194694,0.00014624,2]
[421860108,1778239838000,-500.0,0.00014624,2]
[421860116,1778239838000,-500.0,0.00014999,2]
[421860137,1778239838000,-500.0,0.00014999,2]
[421860132,1778239838000,-500.0,0.00014999,2]
[421860131,1778239838000,-500.0,0.00014999,2]
[421860159,1778239838000,-380.52932165,0.00015,2]
[421860155,1778239838000,-7189511.94455795,0.00015,2]
[421860154,1778239838000,-205.82,0.00014999,2]
[421860157,1778239838000,-26491.54762082,0.00015,2]
[421860153,1778239838000,-500.0,0.00014999,2]
[421860151,1778239838000,-500.0,0.00014999,2]
[421860152,1778239838000,-500.0,0.00014999,2]
[421860146,1778239838000,-500.0,0.00014999,2]
[421860149,1778239838000,-500.0,0.00014999,2]
[421860150,1778239838000,-187.6204338,0.00014999,2]
[421860144,1778239838000,-500.0,0.00014999,2]
[421860148,1778239838000,-500.0,0.00014999,2]
[421860147,1778239838000,-476.37915568,0.00014999,2]
[421860145,1778239838000,-500.0,0.00014999,2]
[421860143,1778239838000,-500.0,0.00014999,2]
[421860140,1778239838000,-500.0,0.00014999,2]
[421860141,1778239838000,-500.0,0.00014999,2]
[421860142,1778239838000,-500.0,0.00014999,2]
[421860139,1778239838000,-643.90530651,0.00014999,2]
[421860134,1778239838000,-500.0,0.00014999,2]
[421860136,1778239838000,-500.0,0.00014999,2]
[421860135,1778239838000,-500.0,0.00014999,2]
[421860130,1778239838000,-500.0,0.00014999,2]
[421860138,1778239838000,-500.0,0.00014999,2]
[421860265,1778239843000,-8841.54687766,0.00015,2]
[421860272,1778239846000,-2007.75,0.00015,2]
[421860273,1778239846000,-56643.60110699,0.00015,2]
[421860320,1778239935000,241.11,0.00015,120]
[421860321,1778239997000,608.0,0.0003013,120]
[421860323,1778240098000,163.71,9.956e-05,2]
[421860324,1778240204000,169.15604237,0.0001,30]
[421860328,1778240681000,500.0,0.0003,120]
[421860329,1778241004000,152.0,0.00010002,30]
[421860362,1778241032000,-500.0,0.00014999,2]
[421860361,1778241032000,-500.0,0.00014999,2]
[421860364,1778241032000,-361.60818675,0.00014999,2]
[421860359,1778241032000,-157.45440269,0.000149,2]
[421860358,1778241032000,-4717.22369454,0.000149,2]
[421860357,1778241032000,-153.45573011,0.000149,2]
[421860355,1778241032000,-7435.539641,0.000149,2]
[421860363,1778241032000,-500.0,0.00014999,2]
[421860354,1778241032000,-923.831,0.000149,2]
[421860352,1778241032000,-300.0,0.00014899,2]
[421860356,1778241032000,-151.29717622,0.000149,2]
[421860350,1778241032000,-150.0,0.00014899,2]
[421860349,1778241032000,-1200.0,0.00014898,2]
[421860347,1778241032000,-500.0,0.00014624,2]
[421860348,1778241032000,-161.28,0.00014658,2]
[421860346,1778241032000,-500.0,0.00014624,2]
[421860344,1778241032000,-250.0,0.00014,2]
[421860345,1778241032000,-244.2294,0.00014524,2]
[421860351,1778241032000,-300.0,0.00014899,2]
[421860365,1778241032000,-500.0,0.00014999,2]
[421860353,1778241032000,-183.13119038,0.000149,2]
[421860367,1778241032000,-500.0,0.00014999,2]
[421860385,1778241032000,-258.87161287,0.00015,2]
[421860384,1778241032000,-1557.63357986,0.00015,2]
[421860381,1778241032000,-407.0,0.00015,2]
[421860382,1778241032000,-384.00375208,0.00015,2]
[421860383,1778241032000,-342.86699056,0.00015,2]
[421860379,1778241032000,-457.24022354,0.00015,2]
[421860380,1778241032000,-1648.83586652,0.00015,2]
[421860378,1778241032000,-6317.22397604,0.00015,2]
[421860376,1778241032000,-538.63691117,0.00014999,2]
[421860360,1778241032000,-12347.4542194,0.00014995,2]
[421860375,1778241032000,-500.0,0.00014999,2]
[421860368,1778241032000,-500.0,0.00014999,2]
[421860366,1778241032000,-500.0,0.00014999,2]
[421860369,1778241032000,-500.0,0.00014999,2]
[421860370,1778241032000,-500.0,0.00014999,2]
[421860373,1778241032000,-500.0,0.00014999,2]
[421860372,1778241032000,-500.0,0.00014999,2]
[421860377,1778241032000,-59170.42506674,0.00015,2]
[421860374,1778241032000,-228.94989884,0.00014999,2]
[421860371,1778241032000,-500.0,0.00014999,2]
[421860393,1778241038000,-380.52932165,0.00015,2]
[421860392,1778241038000,-26491.54762082,0.00015,2]
[421860444,1778241040000,-6478.86472451,0.00015,2]
[421860445,1778241040000,-400.765,0.00015,2]
[421860454,1778241043000,-1809.49538483,0.00015,2]
[421860453,1778241043000,-1291.1145512,0.00015,2]
[421860463,1778241046000,-3280.0789,0.00015,2]
[421860462,1778241046000,-1067.73763307,0.00015,2]
[421860461,1778241046000,-500.0,0.00015,2]
[421860460,1778241046000,-278.87169716,0.00015,2]
[421860477,1778241420000,204.19449742,0.00010221,120]
[421860482,1778241639000,163.66,9.445e-05,2]
[421860496,1778242231000,-250.0,0.00014,2]
[421860508,1778242231000,-379.748,0.000147,2]
[421860507,1778242231000,-1000.0,0.00014699,2]
[421860511,1778242231000,-152.0,0.00014852,7]
[421860510,1778242231000,-152.0,0.00014852,7]
[421860512,1778242231000,-152.0,0.00014896,7]
[421860509,1778242231000,-194.66326269,0.000148,2]
[421860513,1778242231000,-1200.0,0.00014897,2]
[421860506,1778242231000,-194.6632627,0.00014541,2]
[421860504,1778242231000,-500.0,0.00014467,2]
[421860505,1778242231000,-2301.37,0.00014497,2]
[421860502,1778242231000,-350.0,0.00014324,2]
[421860503,1778242231000,-200.0,0.00014451,2]
[421860501,1778242231000,-350.0,0.00014322,2]
[421860500,1778242231000,-250.0,0.00014279,2]
[421860497,1778242231000,-6346.09,0.00014016,2]
[421860495,1778242231000,-157.24131601,0.00013488,2]
[421860499,1778242231000,-163.66,0.00014168,2]
[421860515,1778242231000,-161.12398115,0.00014899,2]
[421860514,1778242231000,-300.0,0.00014897,2]
[421860498,1778242231000,-150.0,0.00014139,2]
[421860517,1778242231000,-160.92,0.000149,2]
[421860536,1778242231000,-918.62957587,0.00015,2]
[421860534,1778242231000,-354.00232647,0.00015,2]
[421860533,1778242231000,-393.653476,0.00015,2]
[421860518,1778242231000,-1937.96508542,0.000149,2]
[421860531,1778242231000,-6544.65756157,0.00015,2]
[421860532,1778242231000,-471.84604647,0.00015,2]
[421860530,1778242231000,-2000.0,0.00015,2]
[421860528,1778242231000,-167.0,0.00015,3]
[421860526,1778242231000,-80932.931543,0.00014984,2]
[421860529,1778242231000,-249687.25676061,0.00015,2]
[421860524,1778242231000,-24563.0333993,0.00014984,2]
[421860527,1778242231000,-813.0,0.00015,5]
[421860520,1778242231000,-69317.23200287,0.000149,2]
[421860521,1778242231000,-5431.76737104,0.000149,2]
[421860522,1778242231000,-224.870771,0.000149,2]
[421860516,1778242231000,-181.42965841,0.000149,2]
[421860525,1778242231000,-12810.3108039,0.00014984,2]
[421860523,1778242231000,-919.491,0.00014902,2]
[421860519,1778242231000,-2701.2658332,0.000149,2]
[421860535,1778242231000,-272.12352312,0.00015,2]
[421860555,1778242237000,-371.14842887,0.00015,2]
[421860554,1778242237000,-2245.908,0.00015,2]
[421860551,1778242237000,-10754.88655349,0.00015,2]
[421860553,1778242237000,-380.52932165,0.00015,2]
[421860552,1778242237000,-26491.54762082,0.00015,2]
[421860550,1778242237000,-3775.40854725,0.00015,2]
[421861200,1778242243000,-1627.91270304,0.00015,2]
[421861493,1778242245000,-932.44982764,0.00015,2]
[421861492,1778242245000,-3978.22127553,0.00015,2]
[421861505,1778242246000,-9342.119075,0.00015,2]
[421861510,1778242246000,-11456.2499998,0.00015,2]
[421861557,1778243431000,-881.86002625,0.00014497,2]
[421861552,1778243431000,-300.0,0.00014496,2]
[421861554,1778243431000,-603.43825553,0.00014497,2]
[421861555,1778243431000,-642.03266483,0.00014497,2]
[421861556,1778243431000,-51.43907964,0.00014497,2]
[421861553,1778243431000,-1200.0,0.00014496,2]
[421861603,1778243432000,-500.0,0.00014999,2]
[421861600,1778243432000,-500.0,0.00014999,2]
[421861593,1778243432000,-500.0,0.00014999,2]
[421861598,1778243432000,-500.0,0.00014999,2]
[421861596,1778243432000,-500.0,0.00014999,2]
[421861605,1778243432000,-500.0,0.00014999,2]
[421861609,1778243432000,-500.0,0.00014999,2]
[421861611,1778243432000,-500.0,0.00014999,2]
[421861607,1778243432000,-500.0,0.00014999,2]
[421861615,1778243432000,-500.0,0.00014999,2]
[421861614,1778243432000,-500.0,0.00014999,2]
[421861616,1778243432000,-500.0,0.00014999,2]
[421861617,1778243432000,-500.0,0.00014999,2]
[421861618,1778243432000,-500.0,0.00014999,2]
[421861619,1778243432000,-500.0,0.00014999,2]
[421861586,1778243432000,-500.0,0.00014999,2]
[421861613,1778243432000,-500.0,0.00014999,2]
[421861588,1778243432000,-500.0,0.00014999,2]
[421861559,1778243432000,-735.593,0.000147,2]
[421861575,1778243432000,-500.0,0.00014999,2]
[421861620,1778243432000,-500.0,0.00014999,2]
[421861558,1778243432000,-4235.58997375,0.00014497,2]
[421861560,1778243432000,-181.4296584,0.000149,2]
[421861561,1778243432000,-2765.74807406,0.000149,2]
[421861563,1778243432000,-363.22559153,0.000149,2]
[421861564,1778243432000,-5266.3872003,0.00014963,2]
[421861567,1778243432000,-151.0,0.00014997,2]
[421861568,1778243432000,-155.0,0.00014999,2]
[421861565,1778243432000,-3330.3463402,0.00014963,2]
[421861566,1778243432000,-17352.2605221,0.00014963,2]
[421861569,1778243432000,-500.0,0.00014999,2]
[421861562,1778243432000,-4752.79644966,0.000149,2]
[421861573,1778243432000,-500.0,0.00014999,2]
[421861579,1778243432000,-500.0,0.00014999,2]
[421861577,1778243432000,-153.05789742,0.00014999,2]
[421861581,1778243432000,-500.0,0.00014999,2]
[421861584,1778243432000,-500.0,0.00014999,2]
[421861591,1778243432000,-500.0,0.00014999,2]
[421861623,1778243432000,-500.0,0.00014999,2]
[421861571,1778243432000,-500.0,0.00014999,2]
[421861622,1778243432000,-500.0,0.00014999,2]
[421861653,1778243432000,-500.0,0.00014999,2]
[421861645,1778243432000,-500.0,0.00014999,2]
[421861648,1778243432000,-500.0,0.00014999,2]
[421861646,1778243432000,-500.0,0.00014999,2]
[421861647,1778243432000,-500.0,0.00014999,2]
[421861652,1778243432000,-500.0,0.00014999,2]
[421861658,1778243432000,-435.37040022,0.00014999,2]
[421861651,1778243432000,-594.50242015,0.00014999,2]
[421861650,1778243432000,-500.0,0.00014999,2]
[421861649,1778243432000,-500.0,0.00014999,2]
[421861655,1778243432000,-500.0,0.00014999,2]
[421861654,1778243432000,-500.0,0.00014999,2]
[421861656,1778243432000,-500.0,0.00014999,2]
[421861661,1778243432000,-368.27551329,0.00014999,2]
[421861659,1778243432000,-500.0,0.00014999,2]
[421861660,1778243432000,-500.0,0.00014999,2]
[421861621,1778243432000,-500.0,0.00014999,2]
[421861644,1778243432000,-500.0,0.00014999,2]
[421861643,1778243432000,-500.0,0.00014999,2]
[421861657,1778243432000,-64.62959978,0.00014999,2]
[421861639,1778243432000,-500.0,0.00014999,2]
[421861642,1778243432000,-500.0,0.00014999,2]
[421861629,1778243432000,-500.0,0.00014999,2]
[421861626,1778243432000,-500.0,0.00014999,2]
[421861627,1778243432000,-500.0,0.00014999,2]
[421861628,1778243432000,-500.0,0.00014999,2]
[421861624,1778243432000,-500.0,0.00014999,2]
[421861631,1778243432000,-334.55274335,0.00014999,2]
[421861641,1778243432000,-500.0,0.00014999,2]
[421861625,1778243432000,-500.0,0.00014999,2]
[421861633,1778243432000,-150.0,0.00014999,2]
[421861635,1778243432000,-500.0,0.00014999,2]
[421861632,1778243432000,-500.0,0.00014999,2]
[421861636,1778243432000,-241.05907523,0.00014999,2]
[421861630,1778243432000,-500.0,0.00014999,2]
[421861634,1778243432000,-500.0,0.00014999,2]
[421861638,1778243432000,-500.0,0.00014999,2]
[421861637,1778243432000,-500.0,0.00014999,2]
[421861640,1778243432000,-500.0,0.00014999,2]
[421861675,1778243437000,-1291.97672362,0.000149,2]
[421861676,1778243437000,-49.17333244,0.00014999,2]
[421861705,1778243438000,-500.0,0.00014999,2]
[421861703,1778243438000,-500.0,0.00014999,2]
[421861695,1778243438000,-500.0,0.00014999,2]
[421861708,1778243438000,-500.0,0.00014999,2]
[421861710,1778243438000,-500.0,0.00014999,2]
[421861714,1778243438000,-500.0,0.00014999,2]
[421861712,1778243438000,-500.0,0.00014999,2]
[421861720,1778243438000,-500.0,0.00014999,2]
[421861722,1778243438000,-500.0,0.00014999,2]
[421861718,1778243438000,-500.0,0.00014999,2]
[421861716,1778243438000,-500.0,0.00014999,2]
[421861724,1778243438000,-500.0,0.00014999,2]
[421861723,1778243438000,-500.0,0.00014999,2]
[421861688,1778243438000,-500.0,0.00014999,2]
[421861682,1778243438000,-500.0,0.00014999,2]
[421861690,1778243438000,-500.0,0.00014999,2]
[421861697,1778243438000,-476.37915568,0.00014999,2]
[421861686,1778243438000,-500.0,0.00014999,2]
[421861692,1778243438000,-500.0,0.00014999,2]
[421861683,1778243438000,-500.0,0.00014999,2]
[421861685,1778243438000,-500.0,0.00014999,2]
[421861684,1778243438000,-500.0,0.00014999,2]
[421861678,1778243438000,-500.0,0.00014999,2]
[421861680,1778243438000,-294.09250233,0.00014999,2]
[421861681,1778243438000,-500.0,0.00014999,2]
[421861679,1778243438000,-205.90749767,0.00014999,2]
[421861677,1778243438000,-82.55115427,0.00014999,2]
[421861727,1778243438000,-155.0,0.00014999,2]
[421861701,1778243438000,-500.0,0.00014999,2]
[421861735,1778243438000,-500.0,0.00014999,2]
[421861699,1778243438000,-500.0,0.00014999,2]
[421861729,1778243438000,-500.0,0.00014999,2]
[421861725,1778243438000,-500.0,0.00014999,2]
[421861811,1778243438000,-26491.54762082,0.00015,2]
[421861779,1778243438000,-1999.99,0.00015,2]
[421861783,1778243438000,-151.0,0.00015,2]
[421861774,1778243438000,-151.26,0.00015,2]
[421861781,1778243438000,-206.71665522,0.00015,2]
[421861776,1778243438000,-2503.58309882,0.00015,14]
[421861786,1778243438000,-5057148.09484805,0.00015,2]
[421861772,1778243438000,-2209076.71579201,0.00015,2]
[421861784,1778243438000,-9519.0,0.00015,2]
[421861770,1778243438000,-24343.57283609,0.00015,2]
[421861768,1778243438000,-815.0,0.00015,5]
[421861762,1778243438000,-300.0,0.00014999,2]
[421861766,1778243438000,-818.0,0.00015,5]
[421861813,1778243438000,-380.52932165,0.00015,2]
[421861764,1778243438000,-666.0,0.00014999,2]
[421861731,1778243438000,-500.0,0.00014999,2]
[421861737,1778243438000,-205.82,0.00014999,2]
[421861733,1778243438000,-500.0,0.00014999,2]
[421861741,1778243438000,-500.0,0.00014999,2]
[421861743,1778243438000,-500.0,0.00014999,2]
[421861745,1778243438000,-500.0,0.00014999,2]
[421861739,1778243438000,-500.0,0.00014999,2]
[421861751,1778243438000,-500.0,0.00014999,2]
[421861749,1778243438000,-500.0,0.00014999,2]
[421861758,1778243438000,-500.0,0.00014999,2]
[421861754,1778243438000,-500.0,0.00014999,2]
[421861756,1778243438000,-500.0,0.00014999,2]
[421861747,1778243438000,-500.0,0.00014999,2]
[421861760,1778243438000,-666.0,0.00014999,2]
[421862218,1778243441000,-8029.9747812,0.00015,2]
[421862194,1778243441000,-420.13838643,0.00015,2]
[421862196,1778243441000,-2740.0,0.00015,2]
[421862411,1778243443000,-397.21675099,0.00015,2]
[421862427,1778243443000,-6421.44,0.00015,2]
[421862418,1778243443000,-3849.37863464,0.00015,2]
[421862731,1778243446000,-3051.58538902,0.00015,2]
[421862729,1778243446000,-6324.1432846,0.00015,2]
[421862796,1778243796000,297.0,0.00030135,120]
[421862800,1778243874000,11000.0,0.00030135,120]
[421862804,1778244199000,152.0,0.00010004,30]
[421862805,1778244329000,150.0,0.0001,2]
[421862806,1778244358000,150.0,0.0001,2]
[421862807,1778244359000,-150.0,0.000115,2]
[421862808,1778244359000,-66.52678078,0.00012,2]
[421862809,1778244546000,-83.47321922,0.00012,2]
[421862810,1778244546000,-350.61787901,0.00012581,2]
[421862811,1778244546000,-191.90604981,0.00012581,2]
[421862812,1778244546000,-150.0,0.00012715,2]
[421862813,1778244546000,-1092.87711176,0.00012757,2]
[421862819,1778244631000,-759.87220332,0.00012747,2]
[421862820,1778244631000,-385.72241636,0.00012747,2]
[421862823,1778244631000,-555.92102686,0.00012757,2]
[421862825,1778244631000,-150.0,0.00012841,2]
[421862830,1778244631000,-300.0,0.00013592,2]
[421862822,1778244631000,-672.09,0.00012757,2]
[421862824,1778244631000,-1248.66057264,0.00012757,2]
[421862826,1778244631000,-200.0,0.00013279,2]
[421862821,1778244631000,-1729.08128874,0.00012757,2]
[421862827,1778244631000,-2399.2,0.00013459,2]
[421862828,1778244631000,-1200.0,0.00013589,2]
[421862831,1778244631000,-300.0,0.00013592,2]
[421862829,1778244631000,-1125.39,0.0001359,2]
[421862847,1778244632000,-2399.2,0.00014132,2]
[421862858,1778244632000,-150.0,0.00014525,2]
[421862866,1778244632000,-170.34309971,0.000147,2]
[421862856,1778244632000,-206.97213318,0.00014525,2]
[421862857,1778244632000,-150.0,0.00014525,2]
[421862855,1778244632000,-150.0,0.00014525,2]
[421862865,1778244632000,-7050.4147193,0.000147,2]
[421862859,1778244632000,-234.55796796,0.00014525,2]